[Event "Titled Tuesday Blitz January 03 Late 2023"]
[White "Sai Krishna G V"]
[Black "Melkumyan, Hrant"]
[WhiteFideId "5028280"]
[BlackFideId "13302485"]
[WhiteElo "2384"]
[BlackElo "2645"]
[Result "1/2-1/2"]
[Round "08"]
[TimeControl "180+2"]
[Date "2023.01.03"]
[WhiteClock "0:00:12"]
[BlackClock "0:00:08"]

1. e4 {[%clk 0:03:00]}  c5 {[%clk 0:02:54]} 2. Nf3 {[%clk 0:03:01]}  Nc6 {[%clk 0:02:54]} 3. Nc3 {[%clk 0:03:01]}  e5 {[%clk 0:02:52]} 4. Bc4 {[%clk 0:02:55]}  Be7 {[%clk 0:02:52]} 5. d3 {[%clk 0:02:51]}  d6 {[%clk 0:02:52]} 6. O-O {[%clk 0:02:50]}  Nf6 {[%clk 0:02:53]} 7. h3 {[%clk 0:02:44]}  O-O {[%clk 0:02:52]} 8. Bg5 {[%clk 0:02:41]}  Na5 {[%clk 0:02:51]} 9. Bxf6 {[%clk 0:02:36]}  Bxf6 {[%clk 0:02:50]} 10. Bd5 {[%clk 0:02:37]}  Nc6 {[%clk 0:02:48]} 11. Nd2 {[%clk 0:02:34]}  Ne7 {[%clk 0:02:44]} 12. Nc4 {[%clk 0:02:33]}  a6 {[%clk 0:02:41]} 13. a4 {[%clk 0:02:31]}  g6 {[%clk 0:02:40]} 14. a5 {[%clk 0:02:26]}  Nxd5 {[%clk 0:02:39]} 15. Nxd5 {[%clk 0:02:24]}  Rb8 {[%clk 0:02:30]} 16. c3 {[%clk 0:02:11]}  Bg7 {[%clk 0:02:28]} 17. f4 {[%clk 0:01:58]}  exf4 {[%clk 0:02:24]} 18. Rxf4 {[%clk 0:01:59]}  Be6 {[%clk 0:02:24]} 19. Ncb6 {[%clk 0:01:48]}  Qg5 {[%clk 0:02:19]} 20. h4 {[%clk 0:01:39]}  Qg3 {[%clk 0:02:14]} 21. Qf3 {[%clk 0:01:25]}  Qxf3 {[%clk 0:02:06]} 22. Rxf3 {[%clk 0:01:26]}  Rbd8 {[%clk 0:01:43]} 23. Nf6+ {[%clk 0:01:17]}  Kh8 {[%clk 0:01:36]} 24. Raf1 {[%clk 0:01:16]}  h5 {[%clk 0:01:31]} 25. Kf2 {[%clk 0:01:00]}  Bh6 {[%clk 0:01:26]} 26. Kg3 {[%clk 0:00:58]}  Kg7 {[%clk 0:01:26]} 27. Nfd5 {[%clk 0:00:55]}  Kh7 {[%clk 0:01:23]} 28. Nc7 {[%clk 0:00:54]}  Kg8 {[%clk 0:01:13]} 29. Nbd5 {[%clk 0:00:52]}  Bg7 {[%clk 0:00:52]} 30. Ne7+ {[%clk 0:00:52]}  Kh7 {[%clk 0:00:52]} 31. Nxe6 {[%clk 0:00:33]}  fxe6 {[%clk 0:00:52]} 32. Rxf8 {[%clk 0:00:33]}  Rxf8 {[%clk 0:00:50]} 33. Rxf8 {[%clk 0:00:28]}  Bxf8 {[%clk 0:00:51]} 34. Nc8 {[%clk 0:00:28]}  Kg8 {[%clk 0:00:51]} 35. Kf4 {[%clk 0:00:23]}  Kf7 {[%clk 0:00:48]} 36. e5 {[%clk 0:00:20]}  d5 {[%clk 0:00:43]} 37. c4 {[%clk 0:00:16]}  Ke8 {[%clk 0:00:25]} 38. g4 {[%clk 0:00:16]}  hxg4 {[%clk 0:00:19]} 39. Kxg4 {[%clk 0:00:17]}  Kd7 {[%clk 0:00:19]} 40. Nb6+ {[%clk 0:00:17]}  Kc6 {[%clk 0:00:19]} 41. Kg5 {[%clk 0:00:17]}  Bg7 {[%clk 0:00:15]} 42. Kxg6 {[%clk 0:00:17]}  Bxe5 {[%clk 0:00:15]} 43. b3 {[%clk 0:00:17]}  Bc3 {[%clk 0:00:16]} 44. h5 {[%clk 0:00:16]}  Bxa5 {[%clk 0:00:16]} 45. Na4 {[%clk 0:00:15]}  Bc7 {[%clk 0:00:09]} 46. Kf6 {[%clk 0:00:15]}  b5 {[%clk 0:00:06]} 47. Nb2 {[%clk 0:00:11]}  Ba5 {[%clk 0:00:05]} 48. Nd1 {[%clk 0:00:10]}  dxc4 {[%clk 0:00:03]} 49. dxc4 {[%clk 0:00:10]}  Bd2 {[%clk 0:00:02]} 50. Kxe6 {[%clk 0:00:10]}  b4 {[%clk 0:00:02]} 51. Nf2 {[%clk 0:00:08]}  a5 {[%clk 0:00:02]} 52. Ne4 {[%clk 0:00:08]}  Bc1 {[%clk 0:00:02]} 53. Nf2 {[%clk 0:00:04]}  Be3 {[%clk 0:00:02]} 54. Nd3 {[%clk 0:00:04]}  Bd2 {[%clk 0:00:03]} 55. Ne5+ {[%clk 0:00:05]}  Kc7 {[%clk 0:00:02]} 56. Kd5 {[%clk 0:00:05]}  a4 {[%clk 0:00:02]} 57. bxa4 {[%clk 0:00:06]}  b3 {[%clk 0:00:02]} 58. Nd3 {[%clk 0:00:07]}  Bc3 {[%clk 0:00:02]} 59. h6 {[%clk 0:00:06]}  Kb6 {[%clk 0:00:01]} 60. h7 {[%clk 0:00:06]}  b2 {[%clk 0:00:02]} 61. Nxb2 {[%clk 0:00:06]}  Bxb2 {[%clk 0:00:03]} 62. a5+ {[%clk 0:00:06]}  Kxa5 {[%clk 0:00:03]} 63. Kxc5 {[%clk 0:00:07]}  Ka6 {[%clk 0:00:04]} 64. Kd6 {[%clk 0:00:08]}  Kb7 {[%clk 0:00:04]} 65. Kd7 {[%clk 0:00:08]}  Kb6 {[%clk 0:00:04]} 66. Kd6 {[%clk 0:00:08]}  Kb7 {[%clk 0:00:05]} 67. c5 {[%clk 0:00:09]}  Kc8 {[%clk 0:00:05]} 68. Ke6 {[%clk 0:00:09]}  Bh8 {[%clk 0:00:05]} 69. Kf7 {[%clk 0:00:09]}  Kc7 {[%clk 0:00:06]} 70. Kg8 {[%clk 0:00:10]}  Bd4 {[%clk 0:00:07]} 71. Kf7 {[%clk 0:00:11]}  Kc6 {[%clk 0:00:06]} 72. Ke6 {[%clk 0:00:11]}  Kxc5 {[%clk 0:00:07]} 73. Kf7 {[%clk 0:00:12]}  Kd6 {[%clk 0:00:07]} 74. Kg8 {[%clk 0:00:13]}  Ke7 {[%clk 0:00:08]} 75. h8=B {[%clk 0:00:12]} 1/2-1/2


[Site "https://www.chess.com"]

[Event "Titled Tuesday Blitz January 03 Late 2023"]
[White "Svane, Rasmus"]
[Black "Morefield, Jason"]
[WhiteFideId "4657101"]
[BlackFideId "30920825"]
[WhiteElo "2623"]
[BlackElo "2167"]
[Result "1-0"]
[Round "08"]
[TimeControl "180+2"]
[Date "2023.01.03"]
[WhiteClock "0:00:13"]
[BlackClock "0:00:03"]

1. Nf3 {[%clk 0:03:00]}  d5 {[%clk 0:02:56]} 2. g3 {[%clk 0:03:01]}  Nf6 {[%clk 0:02:56]} 3. Bg2 {[%clk 0:03:01]}  e6 {[%clk 0:02:52]} 4. O-O {[%clk 0:03:01]}  Be7 {[%clk 0:02:52]} 5. c4 {[%clk 0:03:02]}  O-O {[%clk 0:02:52]} 6. b3 {[%clk 0:03:02]}  c5 {[%clk 0:02:43]} 7. cxd5 {[%clk 0:03:02]}  Nxd5 {[%clk 0:02:42]} 8. Nc3 {[%clk 0:03:02]}  Nxc3 {[%clk 0:02:39]} 9. dxc3 {[%clk 0:03:03]}  Nc6 {[%clk 0:02:39]} 10. Qxd8 {[%clk 0:02:45]}  Rxd8 {[%clk 0:02:40]} 11. Bf4 {[%clk 0:02:45]}  f6 {[%clk 0:02:30]} 12. Rfd1 {[%clk 0:02:36]}  e5 {[%clk 0:02:19]} 13. Be3 {[%clk 0:02:36]}  Be6 {[%clk 0:02:17]} 14. Nd2 {[%clk 0:02:36]}  Rac8 {[%clk 0:02:06]} 15. Ne4 {[%clk 0:02:33]}  b6 {[%clk 0:02:04]} 16. Rxd8+ {[%clk 0:02:32]}  Nxd8 {[%clk 0:02:04]} 17. Rd1 {[%clk 0:02:31]}  Nf7 {[%clk 0:02:04]} 18. c4 {[%clk 0:02:22]}  Rd8 {[%clk 0:01:38]} 19. Rxd8+ {[%clk 0:02:22]}  Nxd8 {[%clk 0:01:39]} 20. Nc3 {[%clk 0:02:23]}  Kf7 {[%clk 0:01:34]} 21. Nb5 {[%clk 0:02:20]}  a6 {[%clk 0:01:31]} 22. Nc7 {[%clk 0:02:16]}  Bc8 {[%clk 0:01:31]} 23. Bd5+ {[%clk 0:02:16]}  Kf8 {[%clk 0:01:31]} 24. a4 {[%clk 0:02:08]}  Nb7 {[%clk 0:01:07]} 25. Nxa6 {[%clk 0:00:59]}  Na5 {[%clk 0:01:06]} 26. b4 {[%clk 0:00:56]}  Bxa6 {[%clk 0:00:50]} 27. bxa5 {[%clk 0:00:56]}  bxa5 {[%clk 0:00:50]} 28. Bd2 {[%clk 0:00:54]}  Bd8 {[%clk 0:00:50]} 29. f4 {[%clk 0:00:51]}  Bc8 {[%clk 0:00:37]} 30. Bc6 {[%clk 0:00:42]}  Be6 {[%clk 0:00:36]} 31. Bb5 {[%clk 0:00:42]}  e4 {[%clk 0:00:27]} 32. Kf2 {[%clk 0:00:40]}  f5 {[%clk 0:00:26]} 33. Bc3 {[%clk 0:00:38]}  Kf7 {[%clk 0:00:23]} 34. Be5 {[%clk 0:00:36]}  g6 {[%clk 0:00:15]} 35. Ke3 {[%clk 0:00:36]}  Ke7 {[%clk 0:00:08]} 36. g4 {[%clk 0:00:36]}  Bb6 {[%clk 0:00:06]} 37. gxf5 {[%clk 0:00:31]}  gxf5 {[%clk 0:00:06]} 38. Kf2 {[%clk 0:00:31]}  Kf7 {[%clk 0:00:06]} 39. Kg3 {[%clk 0:00:32]}  Ke7 {[%clk 0:00:03]} 40. Kh4 {[%clk 0:00:32]}  Kf7 {[%clk 0:00:04]} 41. Kh5 {[%clk 0:00:31]}  Kg8 {[%clk 0:00:04]} 42. Kg5 {[%clk 0:00:27]}  Kf7 {[%clk 0:00:03]} 43. Kh6 {[%clk 0:00:27]}  Kg8 {[%clk 0:00:03]} 44. Bd6 {[%clk 0:00:21]}  Bc8 {[%clk 0:00:03]} 45. Bc6 {[%clk 0:00:21]}  Be6 {[%clk 0:00:03]} 46. Bb5 {[%clk 0:00:21]}  Bf7 {[%clk 0:00:02]} 47. e3 {[%clk 0:00:20]}  Bg6 {[%clk 0:00:02]} 48. Bd7 {[%clk 0:00:20]}  Kf7 {[%clk 0:00:02]} 49. Be5 {[%clk 0:00:20]}  Ke7 {[%clk 0:00:02]} 50. Bc6 {[%clk 0:00:19]}  Kf7 {[%clk 0:00:02]} 51. Bd5+ {[%clk 0:00:19]}  Ke7 {[%clk 0:00:03]} 52. Kg5 {[%clk 0:00:20]}  Kf8 {[%clk 0:00:03]} 53. Be6 {[%clk 0:00:19]}  Ke7 {[%clk 0:00:01]} 54. Bxf5 {[%clk 0:00:18]}  Bf7 {[%clk 0:00:02]} 55. Bxe4 {[%clk 0:00:13]}  Bxc4 {[%clk 0:00:02]} 56. Bxh7 {[%clk 0:00:13]}  Bb3 {[%clk 0:00:02]} 57. f5 {[%clk 0:00:14]}  Bxa4 {[%clk 0:00:03]} 58. f6+ {[%clk 0:00:14]}  Ke6 {[%clk 0:00:03]} 59. Bc3 {[%clk 0:00:14]}  Bd8 {[%clk 0:00:03]} 60. Bg8+ {[%clk 0:00:13]}  Kd7 {[%clk 0:00:02]} 61. Kg6 {[%clk 0:00:13]}  Bc2+ {[%clk 0:00:01]} 62. Kg7 {[%clk 0:00:14]}  Be4 {[%clk 0:00:01]} 63. f7 {[%clk 0:00:14]}  Be7 {[%clk 0:00:01]} 64. f8=Q {[%clk 0:00:12]}  Bxf8+ {[%clk 0:00:02]} 65. Kxf8 {[%clk 0:00:13]}  a4 {[%clk 0:00:01]} 66. h4 {[%clk 0:00:14]}  Kc6 {[%clk 0:00:02]} 67. h5 {[%clk 0:00:14]}  Kb5 {[%clk 0:00:02]} 68. h6 {[%clk 0:00:14]}  a3 {[%clk 0:00:02]} 69. Kg7 {[%clk 0:00:12]}  Ka4 {[%clk 0:00:02]} 70. Bf7 {[%clk 0:00:12]}  Kb5 {[%clk 0:00:02]} 71. Bg6 {[%clk 0:00:13]}  Bxg6 {[%clk 0:00:02]} 72. Kxg6 {[%clk 0:00:13]}  Kc4 {[%clk 0:00:02]} 73. Ba1 {[%clk 0:00:13]}  Kb3 {[%clk 0:00:03]} 74. h7 {[%clk 0:00:13]} 1-0


[Site "https://www.chess.com"]

[Event "Titled Tuesday Blitz January 03 Late 2023"]
[White "Pichot, Alan"]
[Black "Alikhanov, Felix"]
[WhiteFideId "110973"]
[BlackFideId "4157427"]
[WhiteElo "2638"]
[BlackElo "2434"]
[Result "1-0"]
[Round "08"]
[TimeControl "180+2"]
[Date "2023.01.03"]
[WhiteClock "0:01:06"]
[BlackClock "0:00:13"]

1. c4 {[%clk 0:03:00]}  Nf6 {[%clk 0:02:58]} 2. Nc3 {[%clk 0:03:00]}  e5 {[%clk 0:02:59]} 3. Nf3 {[%clk 0:02:59]}  Nc6 {[%clk 0:02:59]} 4. e3 {[%clk 0:03:00]}  Bb4 {[%clk 0:02:58]} 5. Qc2 {[%clk 0:02:59]}  Bxc3 {[%clk 0:02:57]} 6. Qxc3 {[%clk 0:02:58]}  Qe7 {[%clk 0:02:57]} 7. a3 {[%clk 0:02:56]}  a5 {[%clk 0:02:57]} 8. d3 {[%clk 0:02:42]}  O-O {[%clk 0:02:55]} 9. b3 {[%clk 0:02:27]}  d5 {[%clk 0:02:54]} 10. cxd5 {[%clk 0:02:28]}  Nxd5 {[%clk 0:02:54]} 11. Qc2 {[%clk 0:02:28]}  Re8 {[%clk 0:02:41]} 12. Bb2 {[%clk 0:02:26]}  Bg4 {[%clk 0:02:40]} 13. Be2 {[%clk 0:02:26]}  Rad8 {[%clk 0:02:35]} 14. O-O {[%clk 0:02:25]}  f5 {[%clk 0:02:27]} 15. h3 {[%clk 0:02:14]}  Bh5 {[%clk 0:02:14]} 16. Nxe5 {[%clk 0:02:10]}  Bxe2 {[%clk 0:02:13]} 17. Nxc6 {[%clk 0:02:10]}  bxc6 {[%clk 0:02:14]} 18. Qxe2 {[%clk 0:02:10]}  Nf4 {[%clk 0:02:14]} 19. Qf3 {[%clk 0:01:59]}  Nxd3 {[%clk 0:02:11]} 20. Bc3 {[%clk 0:02:00]}  Qc5 {[%clk 0:01:56]} 21. Bd4 {[%clk 0:01:41]}  Qb5 {[%clk 0:01:51]} 22. Rfd1 {[%clk 0:01:37]}  f4 {[%clk 0:01:10]} 23. Qg4 {[%clk 0:01:32]}  Rxd4 {[%clk 0:01:04]} 24. exd4 {[%clk 0:01:30]}  c5 {[%clk 0:00:32]} 25. Qf3 {[%clk 0:01:18]}  cxd4 {[%clk 0:00:15]} 26. Rxd3 {[%clk 0:01:17]}  c5 {[%clk 0:00:14]} 27. Rc1 {[%clk 0:01:11]}  h6 {[%clk 0:00:14]} 28. a4 {[%clk 0:01:08]}  Qb8 {[%clk 0:00:13]} 29. Rxc5 {[%clk 0:01:06]}  Re1+ {[%clk 0:00:12]} 30. Kh2 {[%clk 0:01:07]}  Qd6 {[%clk 0:00:13]} 31. Qd5+ {[%clk 0:01:05]}  Qxd5 {[%clk 0:00:13]} 32. Rxd5 {[%clk 0:01:06]} 1-0


[Site "https://www.chess.com"]

[Event "Titled Tuesday Blitz January 03 Late 2023"]
[White "Martins, Bruno Andre Leite"]
[Black "Yuan, Qingyu"]
[WhiteFideId "1942255"]
[BlackFideId "8609772"]
[WhiteElo "2348"]
[BlackElo "2373"]
[Result "0-1"]
[Round "08"]
[TimeControl "180+2"]
[Date "2023.01.03"]
[WhiteClock "0:00:01"]
[BlackClock "0:00:03"]

1. e4 {[%clk 0:03:00]}  e5 {[%clk 0:02:58]} 2. Nf3 {[%clk 0:02:54]}  Nc6 {[%clk 0:02:58]} 3. d4 {[%clk 0:02:54]}  exd4 {[%clk 0:02:58]} 4. Nxd4 {[%clk 0:02:55]}  Nf6 {[%clk 0:02:58]} 5. Nc3 {[%clk 0:02:52]}  Bb4 {[%clk 0:02:58]} 6. Nxc6 {[%clk 0:02:52]}  bxc6 {[%clk 0:02:59]} 7. Bd3 {[%clk 0:02:53]}  O-O {[%clk 0:02:58]} 8. O-O {[%clk 0:02:47]}  d5 {[%clk 0:02:58]} 9. exd5 {[%clk 0:02:48]}  Bg4 {[%clk 0:02:58]} 10. f3 {[%clk 0:02:48]}  Bh5 {[%clk 0:02:57]} 11. dxc6 {[%clk 0:02:49]}  Qd4+ {[%clk 0:02:57]} 12. Kh1 {[%clk 0:02:49]}  Bxc3 {[%clk 0:02:58]} 13. bxc3 {[%clk 0:02:50]}  Qxc3 {[%clk 0:02:59]} 14. Rb1 {[%clk 0:02:50]}  Qxc6 {[%clk 0:02:54]} 15. Rb3 {[%clk 0:02:41]}  Rad8 {[%clk 0:02:43]} 16. Bb2 {[%clk 0:02:41]}  Nd5 {[%clk 0:02:25]} 17. Qa1 {[%clk 0:02:40]}  f6 {[%clk 0:01:59]} 18. Be4 {[%clk 0:02:32]}  Bg6 {[%clk 0:01:47]} 19. Rd1 {[%clk 0:02:11]}  Bxe4 {[%clk 0:01:41]} 20. fxe4 {[%clk 0:02:12]}  Nf4 {[%clk 0:01:41]} 21. Rg3 {[%clk 0:01:36]}  Qxc2 {[%clk 0:01:30]} 22. Rc1 {[%clk 0:01:36]}  Qe2 {[%clk 0:01:22]} 23. Re1 {[%clk 0:01:04]}  Qd2 {[%clk 0:01:04]} 24. Bc3 {[%clk 0:00:50]}  Qd7 {[%clk 0:00:42]} 25. e5 {[%clk 0:00:49]}  Nh5 {[%clk 0:00:19]} 26. Rh3 {[%clk 0:00:41]}  Qg4 {[%clk 0:00:16]} 27. exf6 {[%clk 0:00:34]}  Nxf6 {[%clk 0:00:12]} 28. Rg3 {[%clk 0:00:34]}  Qh4 {[%clk 0:00:12]} 29. Re7 {[%clk 0:00:27]}  Rf7 {[%clk 0:00:10]} 30. Rxf7 {[%clk 0:00:07]}  Kxf7 {[%clk 0:00:10]} 31. Qb1 {[%clk 0:00:06]}  Ng4 {[%clk 0:00:04]} 32. Qf5+ {[%clk 0:00:04]}  Nf6 {[%clk 0:00:05]} 33. Qb1 {[%clk 0:00:01]}  Qe4 {[%clk 0:00:04]} 34. Qb3+ {[%clk 0:00:01]}  Qd5 {[%clk 0:00:03]} 35. h3 {[%clk 0:00:02]}  Qxb3 {[%clk 0:00:03]} 36. axb3 {[%clk 0:00:03]}  Rd6 {[%clk 0:00:02]} 37. Kh2 {[%clk 0:00:03]}  Rc6 {[%clk 0:00:02]} 38. Be5 {[%clk 0:00:04]}  g6 {[%clk 0:00:02]} 39. Rf3 {[%clk 0:00:04]}  Ke7 {[%clk 0:00:03]} 40. Re3 {[%clk 0:00:03]}  Nd5 {[%clk 0:00:03]} 41. Rd3 {[%clk 0:00:02]}  Ke6 {[%clk 0:00:03]} 42. Bg3 {[%clk 0:00:02]}  Nb4 {[%clk 0:00:03]} 43. Rd4 {[%clk 0:00:02]}  Nd5 {[%clk 0:00:03]} 44. Ra4 {[%clk 0:00:03]}  a6 {[%clk 0:00:03]} 45. Ra5 {[%clk 0:00:03]}  Rb6 {[%clk 0:00:03]} 46. h4 {[%clk 0:00:02]}  Rxb3 {[%clk 0:00:02]} 47. Rxa6+ {[%clk 0:00:03]}  Rb6 {[%clk 0:00:02]} 48. Ra7 {[%clk 0:00:03]}  Rc6 {[%clk 0:00:02]} 49. Rb7 {[%clk 0:00:03]}  Rc2 {[%clk 0:00:02]} 50. Rb8 {[%clk 0:00:03]}  Ne3 {[%clk 0:00:03]} 51. Kh3 {[%clk 0:00:02]}  Nf5 {[%clk 0:00:03]} 52. Bf4 {[%clk 0:00:02]}  Rc3+ {[%clk 0:00:03]} 53. g3 {[%clk 0:00:03]}  h5 {[%clk 0:00:03]} 54. Re8+ {[%clk 0:00:02]}  Kf7 {[%clk 0:00:04]} 55. Rc8 {[%clk 0:00:03]}  c5 {[%clk 0:00:04]} 56. Rc7+ {[%clk 0:00:03]}  Ke6 {[%clk 0:00:04]} 57. Rc6+ {[%clk 0:00:03]}  Kf7 {[%clk 0:00:04]} 58. Rc7+ {[%clk 0:00:04]}  Kf8 {[%clk 0:00:04]} 59. Rc8+ {[%clk 0:00:03]}  Ke7 {[%clk 0:00:04]} 60. Rc7+ {[%clk 0:00:04]}  Ke6 {[%clk 0:00:04]} 61. Rc6+ {[%clk 0:00:04]}  Kd5 {[%clk 0:00:04]} 62. Rxg6 {[%clk 0:00:04]}  Ke4 {[%clk 0:00:04]} 63. Re6+ {[%clk 0:00:03]}  Kf3 {[%clk 0:00:03]} 64. Re5 {[%clk 0:00:03]}  Nd4 {[%clk 0:00:03]} 65. Re1 {[%clk 0:00:02]}  Ne2 {[%clk 0:00:02]} 66. Be5 {[%clk 0:00:02]}  Rc2 {[%clk 0:00:02]} 67. Rf1+ {[%clk 0:00:02]}  Ke4 {[%clk 0:00:02]} 68. Bc7 {[%clk 0:00:01]}  c4 {[%clk 0:00:03]} 0-1


[Site "https://www.chess.com"]

[Event "Titled Tuesday Blitz January 03 Late 2023"]
[White "Przybylski, Wojciech"]
[Black "Mardov, Dimitar"]
[WhiteFideId "1117599"]
[BlackFideId "30919495"]
[WhiteElo "2321"]
[BlackElo "2456"]
[Result "0-1"]
[Round "08"]
[TimeControl "180+2"]
[Date "2023.01.03"]
[WhiteClock "0:00:01"]
[BlackClock "0:01:47"]

1. e4 {[%clk 0:03:00]}  e5 {[%clk 0:02:57]} 2. Nf3 {[%clk 0:03:00]}  Nc6 {[%clk 0:02:57]} 3. Bb5 {[%clk 0:02:59]}  g6 {[%clk 0:02:54]} 4. O-O {[%clk 0:02:59]}  Bg7 {[%clk 0:02:53]} 5. Re1 {[%clk 0:02:59]}  a6 {[%clk 0:02:51]} 6. Bf1 {[%clk 0:02:56]}  Nge7 {[%clk 0:02:49]} 7. Nc3 {[%clk 0:02:53]}  O-O {[%clk 0:02:48]} 8. h3 {[%clk 0:02:53]}  d5 {[%clk 0:02:48]} 9. d3 {[%clk 0:02:50]}  d4 {[%clk 0:02:45]} 10. Ne2 {[%clk 0:02:50]}  h6 {[%clk 0:02:45]} 11. g3 {[%clk 0:02:47]}  Be6 {[%clk 0:02:45]} 12. Bg2 {[%clk 0:02:46]}  Qd7 {[%clk 0:02:45]} 13. Kh2 {[%clk 0:02:46]}  f5 {[%clk 0:02:42]} 14. Neg1 {[%clk 0:02:42]}  fxe4 {[%clk 0:02:38]} 15. dxe4 {[%clk 0:02:41]}  Rf7 {[%clk 0:02:35]} 16. c3 {[%clk 0:02:40]}  Raf8 {[%clk 0:02:29]} 17. Bd2 {[%clk 0:02:36]}  g5 {[%clk 0:02:25]} 18. cxd4 {[%clk 0:02:20]}  exd4 {[%clk 0:02:22]} 19. Qc1 {[%clk 0:02:03]}  Ng6 {[%clk 0:02:16]} 20. e5 {[%clk 0:01:28]}  Ncxe5 {[%clk 0:02:09]} 21. Nxe5 {[%clk 0:01:24]}  Nxe5 {[%clk 0:02:10]} 22. Re2 {[%clk 0:00:50]}  Rxf2 {[%clk 0:02:06]} 23. Rxf2 {[%clk 0:00:43]}  Rxf2 {[%clk 0:02:07]} 24. Be1 {[%clk 0:00:31]}  Rf8 {[%clk 0:02:01]} 25. Qd1 {[%clk 0:00:22]}  Bd5 {[%clk 0:01:59]} 26. Qe2 {[%clk 0:00:09]}  d3 {[%clk 0:01:57]} 27. Qd2 {[%clk 0:00:08]}  Bxg2 {[%clk 0:01:57]} 28. Qxg2 {[%clk 0:00:07]}  c5 {[%clk 0:01:54]} 29. Bc3 {[%clk 0:00:07]}  Nc4 {[%clk 0:01:46]} 30. Bxg7 {[%clk 0:00:02]}  Kxg7 {[%clk 0:01:47]} 31. Re1 {[%clk 0:00:01]}  d2 {[%clk 0:01:47]} 0-1


[Site "https://www.chess.com"]

[Event "Titled Tuesday Blitz January 03 Late 2023"]
[White "Rustemov, Alexander"]
[Black "Tregubov, Pavel V."]
[WhiteFideId "4119002"]
[BlackFideId "4115341"]
[WhiteElo "2525"]
[BlackElo "2553"]
[Result "0-1"]
[Round "08"]
[TimeControl "180+2"]
[Date "2023.01.03"]
[WhiteClock "0:00:25"]
[BlackClock "0:00:45"]

1. c4 {[%clk 0:02:54]}  c5 {[%clk 0:02:54]} 2. g3 {[%clk 0:02:51]}  Nf6 {[%clk 0:02:53]} 3. Bg2 {[%clk 0:02:52]}  d5 {[%clk 0:02:54]} 4. cxd5 {[%clk 0:02:52]}  Nxd5 {[%clk 0:02:55]} 5. Nc3 {[%clk 0:02:53]}  Nc7 {[%clk 0:02:55]} 6. d3 {[%clk 0:02:49]}  e5 {[%clk 0:02:55]} 7. Be3 {[%clk 0:02:45]}  Nc6 {[%clk 0:02:50]} 8. Bxc6+ {[%clk 0:02:43]}  bxc6 {[%clk 0:02:50]} 9. Qa4 {[%clk 0:02:44]}  Rb8 {[%clk 0:02:27]} 10. Nf3 {[%clk 0:02:40]}  f6 {[%clk 0:02:16]} 11. O-O {[%clk 0:02:38]}  Bd7 {[%clk 0:02:12]} 12. Rfc1 {[%clk 0:02:26]}  Nd5 {[%clk 0:02:08]} 13. Qc2 {[%clk 0:02:12]}  Nxe3 {[%clk 0:02:07]} 14. fxe3 {[%clk 0:02:11]}  Qb6 {[%clk 0:01:56]} 15. Na4 {[%clk 0:02:00]}  Qa5 {[%clk 0:01:41]} 16. b3 {[%clk 0:01:57]}  Rb5 {[%clk 0:01:40]} 17. Nd2 {[%clk 0:01:50]}  Be7 {[%clk 0:01:38]} 18. Ne4 {[%clk 0:01:49]}  O-O {[%clk 0:01:34]} 19. Nexc5 {[%clk 0:01:47]}  Bh3 {[%clk 0:01:33]} 20. Qc4+ {[%clk 0:01:45]}  Kh8 {[%clk 0:01:32]} 21. Qh4 {[%clk 0:01:37]}  Qd2 {[%clk 0:01:23]} 22. Qxh3 {[%clk 0:01:30]}  Bxc5 {[%clk 0:01:20]} 23. Nxc5 {[%clk 0:01:26]}  Rxc5 {[%clk 0:01:18]} 24. Rxc5 {[%clk 0:01:22]}  Qxe3+ {[%clk 0:01:18]} 25. Kf1 {[%clk 0:01:15]}  Qxc5 {[%clk 0:01:18]} 26. Qd7 {[%clk 0:00:55]}  h6 {[%clk 0:01:17]} 27. Re1 {[%clk 0:00:49]}  a5 {[%clk 0:01:15]} 28. Kg2 {[%clk 0:00:48]}  Ra8 {[%clk 0:01:10]} 29. Qb7 {[%clk 0:00:44]}  Rd8 {[%clk 0:01:08]} 30. Qa6 {[%clk 0:00:43]}  Kh7 {[%clk 0:01:03]} 31. Kf1 {[%clk 0:00:41]}  e4 {[%clk 0:00:58]} 32. dxe4 {[%clk 0:00:38]}  Rd2 {[%clk 0:00:58]} 33. a4 {[%clk 0:00:35]}  Qh5 {[%clk 0:00:54]} 34. Kg2 {[%clk 0:00:32]}  Qc5 {[%clk 0:00:47]} 35. Kf1 {[%clk 0:00:29]}  Rd4 {[%clk 0:00:45]} 36. Qxa5 {[%clk 0:00:25]}  Qxa5 {[%clk 0:00:45]} 0-1


[Site "https://www.chess.com"]